fUSD/lending_fUSD_20250628
["ID","MTS","AMOUNT","RATE_DAILY","PERIOD"]
[368362438,1751143840998,-518.08735631,0.00029643,7]
[368362440,1751143841012,-2944.39199836,0.00029643,7]
[368362442,1751143841024,-2073.74720309,0.00029643,7]
[368362445,1751143841035,-4545.7764039,0.00029643,7]
[368362647,1751143843115,-962.58590906,0.00029643,7]
[368362664,1751143843258,-2262.86433108,0.00029643,7]
[368362996,1751143846572,-643.7850038,0.00029581,2]
[368362998,1751143846582,-1781.61499618,0.00029643,7]
[368363002,1751143846593,-38113.81351905,0.00029643,7]
[368363005,1751143846612,-1887.93116305,0.00029643,7]
[368363007,1751143846623,-9265.55924733,0.00029643,7]
[368363010,1751143846646,-553.5581093,0.00029643,7]
[368363013,1751143846657,-65016.66394666,0.00029643,7]
[368363019,1751143846705,-3488.38483234,0.00029643,7]
[368363021,1751143846717,-472.61359969,0.00029643,7]
[368365834,1751144104320,4722.0,0.00026699,10]
[368365835,1751144330598,220.0,0.0001,2]
[368365836,1751144462859,2892.04,0.00027397,120]
[368365837,1751144465144,239.32,0.00027375,120]
[368365838,1751144531892,203.0,0.00020217,2]
[368365839,1751144532397,203.0,0.00025901,10]
[368365840,1751144730810,16703.53047449,0.00038722,60]
[368365841,1751144788292,156.77,0.00013699,2]
[368365843,1751144793496,261.0,0.0002739,120]
[368365844,1751144794289,1788.0,0.0002739,120]
[368365845,1751144817123,-151.0,0.00021677,2]
[368365846,1751144817144,-60.60857363,0.00021734,2]
[368365847,1751144848534,229.0,0.0002739,120]
[368365848,1751144853452,150.0,0.000211,2]
[368365849,1751144913013,741.78834124,0.0002739,120]
[368365851,1751145032291,-151.0,0.00021285,2]
[368365852,1751145032301,-151.0,0.00021315,2]
[368365853,1751145032311,-151.0,0.00021365,2]
[368365854,1751145032321,-151.0,0.00021413,2]
[368365855,1751145032330,-204.0,0.00021479,2]
[368365856,1751145032341,-42.0,0.00021555,2]
[368365857,1751145032454,-208.0,0.00021555,2]
[368365858,1751145032463,-181.9341405,0.0002239,2]
[368365859,1751145032475,-118.0658595,0.0002239,2]
[368365860,1751145032484,-300.0,0.0002266,2]
[368365861,1751145032493,-1500.0,0.00023502,2]
[368365862,1751145032503,-172.5164107,0.00023605,2]
[368365863,1751145032512,-250.0,0.00023705,2]
[368365864,1751145032521,-1500.0,0.00023705,2]
[368365865,1751145032531,-300.0,0.00024565,2]
[368365866,1751145032541,-300.0,0.00024629,2]
[368365867,1751145032553,-204.0,0.00024689,6]
[368365868,1751145032562,-300.0,0.00025599,2]
[368365869,1751145032571,-200.0,0.00026,2]
[368365870,1751145032582,-156.77,0.00026027,2]
[368365871,1751145032593,-1200.0,0.00026754,2]
[368365872,1751145032604,-2699.54,0.00026755,2]
[368365873,1751145032614,-179.67,0.00026855,2]
[368365874,1751145032624,-150.0,0.00027201,2]
[368365875,1751145032634,-426.0,0.00027328,2]
[368365876,1751145032643,-666.0,0.00027333,2]
[368365877,1751145032654,-250.0,0.00027488,2]
[368365878,1751145032664,-615.56,0.00027518,2]
[368365879,1751145032673,-424.0,0.00027532,2]
[368365880,1751145032683,-424.0,0.00027546,7]
[368365881,1751145032692,-424.0,0.00027563,2]
[368365882,1751145032701,-167.05,0.00027606,2]
[368365883,1751145032711,-424.0,0.00027824,2]
[368365884,1751145032720,-204.0,0.00027899,11]
[368365885,1751145032729,-200.0,0.00028,2]
[368365886,1751145032739,-207.4,0.00028155,2]
[368365887,1751145032749,-2030.296672,0.00028155,2]
[368365888,1751145032758,-424.0,0.00028175,2]
[368365889,1751145032768,-462.59,0.00028234,2]
[368365890,1751145032777,-495.38,0.00028234,2]
[368365891,1751145032787,-349.13,0.00028234,2]
[368365893,1751145032796,-234.0,0.00028302,7]
[368365895,1751145032805,-236.0,0.00028422,2]
[368365896,1751145032815,-1000.0,0.0002849,2]
[368365898,1751145032824,-424.0,0.00028535,7]
[368365900,1751145032834,-462.59,0.00028541,2]
[368365902,1751145032843,-462.59,0.00028741,2]
[368365903,1751145032852,-250.875835,0.0002879,8]
[368365905,1751145032861,-168.0,0.00028931,2]
[368365906,1751145032870,-599.877,0.00028936,2]
[368365908,1751145032880,-930.0,0.00028936,2]
[368365909,1751145032889,-1162.0,0.00028936,2]
[368365910,1751145032899,-152.72551967,0.00028973,2]
[368365911,1751145032908,-151.0,0.00028973,2]
[368365912,1751145032918,-500.0,0.00028973,2]
[368365913,1751145032927,-500.0,0.00028973,2]
[368365914,1751145032936,-668.65185757,0.00028973,2]
[368365915,1751145032946,-500.0,0.00028973,2]
[368365916,1751145032955,-500.0,0.00028973,2]
[368365917,1751145032964,-500.0,0.00028973,2]
[368365918,1751145032974,-500.0,0.00028973,2]
[368365919,1751145032984,-500.0,0.00028973,2]
[368365920,1751145032997,-500.0,0.00028973,2]
[368365921,1751145033006,-500.0,0.00028973,2]
[368365922,1751145033016,-500.0,0.00028973,2]
[368365923,1751145033026,-500.0,0.00028973,2]
[368365924,1751145033036,-500.0,0.00028973,2]
[368365925,1751145033046,-206.38989568,0.00028973,2]
[368365926,1751145033055,-500.0,0.00028973,2]
[368365927,1751145033065,-500.0,0.00028973,2]
[368365928,1751145033074,-500.0,0.00028973,2]
[368365929,1751145033084,-500.0,0.00028973,2]
[368365930,1751145033093,-500.0,0.00028973,2]
[368365931,1751145033102,-500.0,0.00028973,2]
[368365932,1751145033111,-500.0,0.00028973,2]
[368365933,1751145033121,-500.0,0.00028973,2]
[368365934,1751145033130,-500.0,0.00028973,2]
[368365935,1751145033139,-500.0,0.00028973,2]
[368365936,1751145033148,-500.0,0.00028973,2]
[368365937,1751145033158,-500.0,0.00028973,2]
[368365938,1751145033167,-500.0,0.00028973,2]
[368365939,1751145033177,-300.0,0.00028973,2]
[368365940,1751145033441,-151.94193683,0.00028973,2]
[368365941,1751145033467,-500.0,0.00028973,2]
[368365942,1751145033476,-500.0,0.00028973,2]
[368365943,1751145033486,-500.0,0.00028973,2]
[368365944,1751145033496,-309.0,0.00028973,2]
[368365945,1751145033505,-1000.0,0.00028989,2]
[368365946,1751145033515,-19043.87887586,0.0002899,2]
[368365947,1751145033528,-2615.58912111,0.0002899,2]
[368365948,1751145033538,-217.4080631,0.00029034,2]
[368365949,1751145033547,-912.1,0.00029041,2]
[368365950,1751145033557,-1207.0,0.0002906,2]
[368365951,1751145033566,-7145.0,0.00029087,2]
[368365952,1751145033575,-4102.0,0.00029087,2]
[368365953,1751145033585,-248.8,0.00029087,2]
[368365954,1751145033595,-1846.63020017,0.0002919,2]
[368365955,1751145033604,-1006.13900584,0.0002919,2]
[368365956,1751145033614,-1006.13900584,0.0002919,2]
[368365957,1751145033624,-2500.0,0.0002919,2]
[368365958,1751145033633,-3230.29333721,0.00029223,2]
[368365959,1751145033643,-835.41973025,0.00029289,2]
[368365960,1751145033652,-3877.7694,0.0002929,2]
[368365961,1751145033661,-75355.75104693,0.0002929,2]
[368365962,1751145033714,-478.1094078,0.0002929,2]
[368365963,1751145033727,-580.76507186,0.0002929,2]
[368365964,1751145033738,-399.8905922,0.0002929,2]
[368365970,1751145038507,-876.089,0.00029087,2]
[368365971,1751145038516,-531.20811262,0.0002929,2]
[368365972,1751145038543,-111022.95696859,0.0002929,2]
[368365974,1751145038552,-1000.0,0.0002929,2]
[368365976,1751145038561,-1846.63020008,0.00029314,2]
[368365978,1751145038571,-2929.6483,0.0002935,2]
[368365979,1751145038581,-2929.6483,0.0002938,2]
[368365980,1751145038590,-241.75846514,0.000294,20]
[368365981,1751145038599,-241.75846501,0.000294,20]
[368365982,1751145038609,-241.75846501,0.000294,20]
[368365983,1751145038618,-241.75846501,0.000294,20]
[368365984,1751145038628,-241.75846501,0.000294,20]
[368365985,1751145038639,-241.75846501,0.000294,20]
[368365986,1751145038649,-241.75846501,0.000294,20]
[368365988,1751145038658,-241.75846501,0.000294,20]
[368365990,1751145038668,-241.75846501,0.000294,20]
[368365992,1751145038677,-150.0,0.00029415,2]
[368365994,1751145038686,-150.0,0.00029423,2]
[368365996,1751145038695,-150.0,0.00029424,2]
[368365998,1751145038704,-200.0,0.00029425,2]
[368366000,1751145038714,-150.0,0.00029426,2]
[368366002,1751145038723,-150.0,0.0002943,2]
[368366004,1751145038732,-150.0,0.00029437,2]
[368366006,1751145038741,-1846.63020008,0.00029439,2]
[368366008,1751145038751,-150.0,0.0002944,2]
[368366010,1751145038759,-150.0,0.00029441,2]
[368366013,1751145038769,-150.0,0.00029446,2]
[368366016,1751145038778,-150.0,0.00029451,2]
[368366018,1751145038787,-150.0,0.00029452,2]
[368366020,1751145038796,-150.0,0.00029465,2]
[368366022,1751145038805,-166.08015784,0.00029472,2]
[368366024,1751145038815,-150.0,0.00029478,2]
[368366026,1751145038824,-150.0,0.00029489,2]
[368366028,1751145038834,-150.0,0.0002949,2]
[368366030,1751145038843,-150.0,0.00029491,2]
[368366032,1751145038852,-1000.0,0.00029493,2]
[368366034,1751145038861,-150.0,0.00029493,2]
[368366035,1751145038871,-300.0,0.00029495,2]
[368366037,1751145038880,-150.0,0.00029498,2]
[368366040,1751145038890,-150.0,0.00029499,2]
[368366041,1751145038900,-150.0,0.00029501,2]
[368366043,1751145038909,-150.0,0.00029509,2]
[368366045,1751145038919,-150.0,0.00029513,2]
[368366047,1751145038928,-150.0,0.00029514,2]
[368366049,1751145038937,-150.0,0.00029514,2]
[368366051,1751145038946,-150.0,0.00029515,2]
[368366053,1751145038955,-150.0,0.00029516,2]
[368366055,1751145038965,-150.0,0.00029519,2]
[368366057,1751145038974,-150.0,0.00029519,2]
[368366059,1751145038983,-1000.0,0.00029521,2]
[368366061,1751145038992,-150.0,0.00029522,2]
[368366063,1751145039001,-150.0,0.00029523,2]
[368366065,1751145039010,-215.0738,0.00029524,2]
[368366067,1751145039020,-150.0,0.00029526,2]
[368366069,1751145039030,-1000.0,0.00029532,2]
[368366071,1751145039039,-150.0,0.00029534,2]
[368366073,1751145039048,-150.0,0.0002954,2]
[368366075,1751145039057,-1000.0,0.00029541,2]
[368366077,1751145039067,-150.0,0.00029543,2]
[368366079,1751145039077,-150.0,0.00029546,2]
[368366081,1751145039087,-150.0,0.00029549,2]
[368366083,1751145039096,-500.0,0.00029552,2]
[368366085,1751145039106,-6993.31111353,0.00029552,2]
[368366087,1751145039115,-200.06869959,0.00029558,15]
[368366089,1751145039124,-150.0,0.00029567,2]
[368366091,1751145039134,-150.0,0.00029569,2]
[368366093,1751145039142,-150.0,0.00029571,2]
[368366095,1751145039152,-150.0,0.00029572,2]
[368366097,1751145039163,-687.0,0.00029572,2]
[368366099,1751145039172,-500.0,0.00029572,2]
[368366101,1751145039181,-150.0,0.00029572,2]
[368366103,1751145039190,-500.0,0.00029572,2]
[368366105,1751145039199,-150.0,0.00029572,2]
[368366107,1751145039209,-500.0,0.00029572,2]
[368366109,1751145039218,-150.0,0.00029572,2]
[368366111,1751145039227,-500.0,0.00029572,2]
[368366113,1751145039236,-546.0,0.00029572,2]
[368366115,1751145039245,-500.0,0.00029572,2]
[368366117,1751145039255,-223.4708251,0.00029572,2]
[368366119,1751145039264,-150.0,0.00029572,2]
[368366120,1751145039273,-150.0,0.00029572,2]
[368366122,1751145039282,-768.099,0.00029572,23]
[368366124,1751145039292,-500.0,0.00029572,2]
[368366126,1751145039301,-500.0,0.00029572,2]
[368366128,1751145039310,-150.0,0.00029572,2]
[368366130,1751145039319,-150.0,0.00029572,2]
[368366132,1751145039327,-500.0,0.00029572,2]
[368366134,1751145039337,-500.0,0.00029572,2]
[368366136,1751145039346,-150.0,0.00029572,2]
[368366138,1751145039355,-625.0,0.00029572,2]
[368366140,1751145039365,-500.0,0.00029572,2]
[368366142,1751145039375,-500.0,0.00029572,2]
[368366144,1751145039385,-150.0,0.00029572,2]
[368366146,1751145039395,-150.0,0.00029572,2]
[368366148,1751145039405,-150.0,0.00029572,2]
[368366150,1751145039414,-150.0,0.00029572,2]
[368366152,1751145039424,-254.21111898,0.00029572,2]
[368366154,1751145039433,-500.0,0.00029572,2]
[368366156,1751145039442,-150.0,0.00029572,2]
[368366158,1751145039451,-150.0,0.00029572,2]
[368366160,1751145039460,-500.0,0.00029572,2]
[368366162,1751145039469,-150.0,0.00029572,2]
[368366164,1751145039477,-500.0,0.00029572,2]
[368366166,1751145039487,-500.0,0.00029573,2]
[368366168,1751145039496,-150.68712096,0.00029573,2]
[368366170,1751145039505,-500.0,0.00029573,2]
[368366172,1751145039515,-150.0,0.00029573,2]
[368366174,1751145039524,-500.0,0.00029573,2]
[368366176,1751145039534,-500.0,0.00029573,2]
[368366178,1751145039543,-150.0,0.00029573,2]
[368366179,1751145039552,-500.0,0.00029573,2]
[368366181,1751145039561,-500.0,0.00029573,2]
[368366183,1751145039570,-150.0,0.00029573,2]
[368366185,1751145039580,-150.0,0.00029573,2]
[368366187,1751145039591,-500.0,0.00029573,2]
[368366189,1751145039600,-150.0,0.00029573,2]
[368366191,1751145039609,-5000.0,0.00029576,2]
[368366193,1751145039619,-150.0,0.00029576,2]
[368366195,1751145039628,-254.21111897,0.00029577,2]
[368366197,1751145039636,-150.0,0.00029579,2]
[368366199,1751145039645,-150.0,0.0002958,2]
[368366201,1751145039654,-294.1384533,0.00029581,2]
[368366203,1751145039664,-300.0,0.00029581,2]
[368366205,1751145039673,-155.66438767,0.00029581,2]
[368366207,1751145039683,-254.21111897,0.00029581,2]
[368366209,1751145039692,-150.0,0.00029585,2]
[368366211,1751145039701,-220.03603498,0.00029588,2]
[368366213,1751145039710,-150.0,0.00029588,2]
[368366215,1751145039719,-150.0,0.00029589,2]
[368366217,1751145039728,-1000.0,0.00029592,2]
[368366218,1751145039737,-150.0,0.00029593,2]
[368366220,1751145039747,-150.0,0.00029597,2]
[368366222,1751145039756,-150.0,0.00029598,2]
[368366224,1751145039765,-464.0,0.00029599,5]
[368366226,1751145039774,-150.0,0.00029599,2]
[368366228,1751145039784,-150.0,0.000296,2]
[368366230,1751145039794,-150.0,0.000296,2]
[368366232,1751145039804,-150.0,0.00029601,2]
[368366234,1751145039815,-1000.0,0.00029608,2]
[368366236,1751145039824,-150.0,0.00029609,2]
[368366238,1751145039833,-150.0,0.00029617,2]
[368366240,1751145039842,-150.0,0.00029618,2]
[368366242,1751145039851,-227.88051534,0.0002962,2]
[368366244,1751145039861,-150.0,0.00029622,2]
[368366246,1751145039870,-150.0,0.00029623,2]
[368366248,1751145039879,-9694.85263028,0.00029624,2]
[368366250,1751145039888,-304.73571988,0.00029625,2]
[368366252,1751145039897,-8673288.77278311,0.00029626,7]
[368366254,1751145039911,-203912.5558226,0.00029626,7]
[368366257,1751145039930,-1895.6422735,0.00029626,7]
[368366260,1751145039944,-2790.01115142,0.00029626,7]
[368366262,1751145039956,-1284.10286343,0.00029626,7]
[368366264,1751145039971,-1552.80007334,0.00029626,7]
[368366267,1751145039985,-399.16792518,0.00029626,7]
[368366269,1751145039999,-953.82884201,0.00029626,7]
[368366271,1751145040011,-2177.4,0.00029626,7]
[368366274,1751145040031,-19000.0,0.00029626,7]
[368366324,1751145040515,-886.0,0.00029087,2]
[368366327,1751145040525,-1269.1164205,0.0002919,2]
[368366358,1751145040819,-1230.8835795,0.0002919,2]
[368366360,1751145040828,-1846.63020008,0.00029563,2]
[368366362,1751145040838,-258.39001684,0.00029626,7]
[368366364,1751145040849,-494.24817556,0.00029626,7]
[368366368,1751145040874,-6368.65399756,0.00029626,7]
[368366600,1751145043325,-5525.2863736,0.00029626,7]
[368366602,1751145043337,-295.99920458,0.00029626,7]
[368366607,1751145043382,-886.43761885,0.00029626,7]
[368366622,1751145043515,-779.43544723,0.00029626,7]
[368366624,1751145043527,-21172.26560808,0.00029626,7]
[368366925,1751145046494,-3732.25195531,0.00029626,7]
[368366937,1751145046604,-2149.09310122,0.00029626,7]
[368366940,1751145046616,-1004.5849142,0.00029626,7]
[368368081,1751145255722,204.0,0.00019898,2]
[368368082,1751145429545,198.0,0.00027397,120]
[368368083,1751145743310,168.77,0.00026622,120]
[368368085,1751145792233,156.77,0.00013699,2]
[368368086,1751145971799,204.0,0.00020748,2]
[368368087,1751146080271,34878.2853449,0.00014,2]
[368368088,1751146080295,40000.0,0.00014,2]
[368368089,1751146080319,40000.0,0.00014,2]
[368368090,1751146080343,40000.0,0.00014,2]
[368368091,1751146080367,40000.0,0.00014,2]
[368368092,1751146080391,40000.0,0.00014,2]
[368368093,1751146080415,40000.0,0.00014,2]
[368368094,1751146080438,40000.0,0.00014,2]
[368368095,1751146080460,40000.0,0.00014,2]
[368368096,1751146080483,20000.0,0.00014,2]
[368368097,1751146080506,29651.23108067,0.00014,2]
[368368098,1751146094446,223.33020674,0.0001439,2]
[368368104,1751146231670,-300.0,0.00021358,2]
[368368105,1751146231680,-197.81408329,0.00021361,2]
[368368106,1751146231692,-52.18591671,0.00021361,2]
[368368107,1751146231701,-300.0,0.00021393,2]
[368368108,1751146231710,-151.0,0.00021416,2]
[368368109,1751146231720,-151.0,0.00021451,2]
[368368110,1751146231730,-151.0,0.00021474,2]
[368368111,1751146231739,-151.0,0.00021481,2]
[368368112,1751146231749,-154.14496835,0.00023469,2]
[368368113,1751146231768,-321.29154664,0.00023469,2]
[368368114,1751146231779,-1024.56348501,0.00023469,2]
[368368115,1751146231789,-250.0,0.0002349,2]
[368368116,1751146231799,-44.4367583,0.0002349,2]
[368368117,1751146231810,-255.5632417,0.0002349,2]
[368368118,1751146231819,-1500.0,0.0002349,2]
[368368119,1751146231913,-250.0,0.00023492,2]
[368368120,1751146231923,-300.0,0.00023492,2]
[368368121,1751146231932,-204.0,0.0002511,8]
[368368122,1751146231941,-151.0,0.00026512,2]
[368368123,1751146231950,-1200.0,0.00026526,2]
[368368124,1751146231959,-600.0,0.00026527,2]
[368368125,1751146231968,-600.0,0.00026527,2]
[368368127,1751146231978,-12677.32,0.00026528,2]
[368368129,1751146231987,-218.39,0.00026567,2]
[368368131,1751146231996,-194.77,0.00026567,2]
[368368132,1751146232004,-200.0,0.00026577,2]
[368368133,1751146232014,-150.0,0.00026598,2]
[368368134,1751146232022,-188.27,0.00026704,2]
[368368135,1751146232034,-250.0,0.00026715,2]
[368368136,1751146232043,-604.1,0.00026753,2]
[368368137,1751146232052,-666.0,0.00026778,2]
[368368138,1751146232062,-512.33,0.00026832,2]
[368368139,1751146232071,-720.0,0.00026839,2]
[368368140,1751146232079,-610.0,0.00026908,2]
[368368141,1751146232088,-185.72,0.00027006,2]
[368368142,1751146232097,-325.0,0.00027006,2]
[368368143,1751146232106,-2037.11,0.00027015,2]
[368368144,1751146232116,-864.0,0.00027154,2]
[368368145,1751146232125,-3570.0,0.00027377,2]
[368368146,1751146232134,-184.58,0.00027397,2]
[368368147,1751146232143,-1036.0,0.00027474,2]
[368368148,1751146232152,-301.82,0.00027475,2]
[368368149,1751146232161,-979.79,0.00027475,2]
[368368150,1751146232170,-1596.0,0.000276,2]
[368368151,1751146232179,-781.0,0.00027797,2]
[368368152,1751146232188,-234.0,0.00027939,7]
[368368153,1751146232197,-701.0,0.0002813,2]
[368368154,1751146232206,-207.4,0.00028155,2]
[368368155,1751146232215,-151.0,0.00028155,2]
[368368156,1751146232224,-668.65185757,0.00028155,2]
[368368157,1751146232233,-1000.0,0.00028155,2]
[368368158,1751146232242,-500.0,0.00028155,2]
[368368159,1751146232252,-636.99495754,0.00028155,2]
[368368160,1751146232261,-500.0,0.00028155,2]
[368368161,1751146232270,-347.99250985,0.00028155,2]
[368368162,1751146232279,-6912.642,0.00028155,2]
[368368163,1751146232288,-500.0,0.00028155,2]
[368368164,1751146232298,-500.0,0.00028155,2]
[368368165,1751146232307,-500.0,0.00028155,2]
[368368166,1751146232316,-500.0,0.00028155,2]
[368368167,1751146232325,-500.0,0.00028155,2]
[368368168,1751146232334,-500.0,0.00028155,2]
[368368169,1751146232343,-500.0,0.00028155,2]
[368368170,1751146232352,-500.0,0.00028155,2]
[368368171,1751146232362,-500.0,0.00028155,2]
[368368172,1751146232371,-500.0,0.00028155,2]
[368368173,1751146232380,-500.0,0.00028155,2]
[368368174,1751146232390,-300.0,0.00028155,2]
[368368175,1751146232400,-500.0,0.00028155,2]
[368368176,1751146232408,-500.0,0.00028155,2]
[368368177,1751146232417,-302.0,0.00028155,2]
[368368178,1751146232427,-500.0,0.00028155,2]
[368368179,1751146232436,-500.0,0.00028155,2]
[368368180,1751146232446,-300.0,0.00028155,2]
[368368181,1751146232455,-153.0,0.00028155,2]
[368368182,1751146232465,-500.0,0.00028155,2]
[368368183,1751146232474,-500.0,0.00028155,2]
[368368184,1751146232484,-500.0,0.00028155,2]
[368368185,1751146232493,-500.0,0.00028155,2]
[368368186,1751146232502,-500.0,0.00028155,2]
[368368187,1751146232511,-1000.0,0.00028204,2]
[368368188,1751146232520,-7168.409754,0.0002821,2]
[368368189,1751146232529,-3767.38344867,0.00028265,2]
[368368190,1751146232539,-5508.0,0.000283,3]
[368368191,1751146232548,-2751.0,0.00028324,2]
[368368192,1751146232556,-500.0,0.00028343,2]
[368368193,1751146232566,-150.0,0.00028343,2]
[368368194,1751146232575,-500.0,0.00028343,2]
[368368195,1751146232584,-500.0,0.00028343,2]
[368368196,1751146232593,-599.0,0.00028343,2]
[368368197,1751146232602,-150.0,0.00028343,2]
[368368198,1751146232612,-533.44822165,0.00028359,2]
[368368199,1751146232621,-4754.08192284,0.0002836,2]
[368368200,1751146232634,-15885.32807716,0.0002836,2]
[368368201,1751146232643,-500.0,0.00028617,2]
[368368202,1751146232653,-500.0,0.00028617,2]
[368368203,1751146232662,-500.0,0.00028617,2]
[368368204,1751146232672,-599.0,0.00028617,2]
[368368205,1751146232681,-150.0,0.00028617,2]
[368368206,1751146232691,-701.0,0.00028761,7]
[368368207,1751146232700,-709.072602,0.0002879,8]
[368368208,1751146232710,-701.0,0.00028796,2]
[368368209,1751146232719,-1680.0,0.00028819,2]
[368368210,1751146232728,-701.0,0.00028849,2]
[368368211,1751146232737,-424.9307,0.0002889,2]
[368368212,1751146232746,-500.0,0.00028891,2]
[368368213,1751146232756,-500.0,0.00028891,2]
[368368214,1751146232765,-622.0,0.00028891,2]
[368368215,1751146232774,-599.0,0.00028891,2]
[368368216,1751146232784,-150.0,0.00028891,2]
[368368217,1751146232793,-1482.31031707,0.00028894,2]
[368368218,1751146232803,-2500.0,0.000289,2]
[368368219,1751146232813,-15588.55498178,0.00028941,2]
[368368220,1751146232822,-180.80989766,0.00028941,2]
[368368221,1751146232831,-556.82086942,0.00028963,17]
[368368222,1751146232841,-243.81426101,0.00028963,2]
[368368223,1751146232850,-52165.5941142,0.0002899,2]
[368368224,1751146232860,-701.0,0.00028994,2]
[368368225,1751146232870,-13206.82307967,0.00029,2]
[368368226,1751146232902,-2358.20721711,0.00029,2]
[368368227,1751146232913,-1557.25,0.00029,2]
[368368228,1751146232935,-3131.49389417,0.00029,2]
[368368229,1751146236400,-267.59430731,0.00029,2]
[368368230,1751146236412,-47716.51435407,0.00029,2]
[368368246,1751146237824,-2973.47679209,0.00029,2]
[368368251,1751146237864,-250426.96935841,0.00029,2]
[368368254,1751146237874,-5508.0,0.00029,5]
[368368256,1751146237883,-355.35,0.00029041,2]
[368368258,1751146237892,-1482.310317,0.00029051,2]
[368368259,1751146237901,-802.22673723,0.00029063,2]
[368368261,1751146237909,-15588.55498177,0.00029093,2]
[368368263,1751146237918,-150.0,0.000291,2]
[368368265,1751146237927,-156.77,0.0002911,2]
[368368267,1751146237936,-234.0,0.00029124,7]
[368368269,1751146237945,-701.0,0.00029149,2]
[368368271,1751146237954,-350.0,0.00029165,2]
[368368273,1751146237964,-350.0,0.00029165,2]
[368368275,1751146237973,-599.0,0.00029165,2]
[368368276,1751146237982,-150.0,0.00029165,2]
[368368277,1751146237991,-500.0,0.00029173,2]
[368368278,1751146238000,-150.0,0.00029173,2]
[368368279,1751146238009,-500.0,0.00029173,2]
[368368280,1751146238019,-150.0,0.00029181,2]
[368368281,1751146238028,-2055.651,0.0002919,2]
[368368282,1751146238037,-500.0,0.0002919,2]
[368368283,1751146238046,-2378.5451,0.0002919,2]
[368368284,1751146238056,-206.52067543,0.000292,20]
[368368285,1751146238065,-206.52067517,0.000292,20]
[368368286,1751146238074,-206.52067517,0.000292,20]
[368368287,1751146238083,-206.52067517,0.000292,20]
[368368288,1751146238093,-206.52067517,0.000292,20]
[368368289,1751146238101,-206.52067517,0.000292,20]
[368368290,1751146238110,-206.52067517,0.000292,20]
[368368291,1751146238120,-206.52067517,0.000292,20]
[368368292,1751146238129,-206.52067517,0.000292,20]
[368368293,1751146238138,-206.52067517,0.000292,20]
[368368294,1751146238147,-1482.310317,0.00029209,2]
[368368295,1751146238156,-3230.29333721,0.00029223,2]
[368368296,1751146238166,-15588.55498177,0.00029245,2]
[368368297,1751146238175,-151.0,0.00029251,2]
[368368298,1751146238184,-243.81426095,0.00029265,15]
[368368299,1751146238193,-2539.02852,0.0002933,2]
[368368300,1751146238201,-1482.310317,0.00029366,2]
[368368301,1751146238210,-180.80989765,0.00029391,2]
[368368302,1751146238219,-15588.55498177,0.00029397,2]
[368368303,1751146238228,-1000.0,0.00029422,2]
[368368304,1751146238237,-200.0,0.00029425,2]
[368368305,1751146238246,-234.0,0.00029426,2]
[368368306,1751146238255,-599.0,0.00029439,2]
[368368307,1751146238264,-150.0,0.00029439,2]
[368368308,1751146238274,-1000.0,0.00029442,2]
[368368309,1751146238283,-500.0,0.00029447,2]
[368368310,1751146238293,-500.0,0.00029447,2]
[368368311,1751146238302,-150.0,0.00029447,2]